fUSD/lending_fUSD_20250309
["ID","MTS","AMOUNT","RATE_DAILY","PERIOD"]
[355705337,1741485037722,-500.0,9.995e-05,2]
[355705338,1741485037731,-501.31446558,9.995e-05,2]
[355705339,1741485037740,-502.94947543,9.995e-05,2]
[355705340,1741485037749,-502.22385472,9.995e-05,2]
[355705341,1741485037758,-500.0,9.995e-05,2]
[355705342,1741485037767,-500.0,9.995e-05,2]
[355705343,1741485037776,-500.56274111,9.995e-05,2]
[355705344,1741485037785,-500.0,9.995e-05,2]
[355705345,1741485037795,-421.93426098,9.995e-05,2]
[355705346,1741485037807,-501.83573906,9.995e-05,2]
[355705347,1741485037816,-503.99041374,9.995e-05,2]
[355705348,1741485037826,-514.45017805,9.995e-05,2]
[355705349,1741485037838,-500.43742596,9.995e-05,2]
[355705350,1741485037847,-502.3029844,9.995e-05,2]
[355705351,1741485037857,-500.0,9.995e-05,2]
[355705352,1741485037866,-504.36017009,9.995e-05,2]
[355705353,1741485037877,-634.61821931,9.995e-05,2]
[355705354,1741485037886,-500.0,9.995e-05,2]
[355705355,1741485037896,-500.0,9.995e-05,2]
[355705356,1741485037906,-500.0,9.995e-05,2]
[355705357,1741485037915,-504.50875471,9.995e-05,2]
[355705358,1741485037924,-500.0,9.995e-05,2]
[355705359,1741485037934,-507.08568116,9.995e-05,2]
[355705360,1741485037943,-500.0,9.995e-05,2]
[355705361,1741485037952,-495.03950708,9.995e-05,2]
[355705362,1741485037961,-502.41792827,9.995e-05,2]
[355705363,1741485037971,-452.05447725,9.995e-05,2]
[355705364,1741485037980,-514.82676046,9.995e-05,2]
[355705365,1741485037989,-500.0,9.995e-05,2]
[355705366,1741485037998,-502.46707681,9.995e-05,2]
[355705367,1741485038007,-502.3838074,9.995e-05,2]
[355705368,1741485038017,-500.0,9.995e-05,2]
[355705369,1741485038026,-500.0,9.995e-05,2]
[355705370,1741485038035,-1044.98,9.995e-05,2]
[355705371,1741485038044,-500.0,9.995e-05,2]
[355705372,1741485038053,-511.72953036,9.995e-05,2]
[355705373,1741485038063,-512.70988374,9.995e-05,2]
[355705374,1741485038072,-500.0,9.995e-05,2]
[355705375,1741485038081,-500.0,9.995e-05,2]
[355705376,1741485038090,-950.24,9.995e-05,2]
[355705377,1741485038100,-503.18448921,9.995e-05,2]
[355705378,1741485038109,-545.84295547,9.995e-05,2]
[355705379,1741485038118,-500.0,9.995e-05,2]
[355705380,1741485038127,-500.0,9.995e-05,2]
[355705381,1741485038136,-525.46824831,9.995e-05,2]
[355705382,1741485038146,-508.69244829,9.995e-05,2]
[355705383,1741485038155,-500.0,9.995e-05,2]
[355705384,1741485038165,-501.06022067,9.995e-05,2]
[355705385,1741485038175,-500.0,9.995e-05,2]
[355705386,1741485038184,-500.0,9.995e-05,2]
[355705387,1741485038194,-556.44,9.995e-05,2]
[355705388,1741485038203,-527.38658725,9.995e-05,2]
[355705389,1741485038212,-500.0,9.995e-05,2]
[355705390,1741485038221,-504.48314717,9.995e-05,2]
[355705391,1741485038231,-500.0,9.995e-05,2]
[355705392,1741485038240,-500.0,9.995e-05,2]
[355705393,1741485038249,-502.21945641,9.995e-05,2]
[355705394,1741485038258,-1433.78,9.995e-05,2]
[355705395,1741485038267,-500.0,9.995e-05,2]
[355705396,1741485038276,-504.49907877,9.995e-05,2]
[355705397,1741485038286,-439.00673043,9.995e-05,2]
[355705399,1741485038296,-500.0,9.995e-05,2]
[355705401,1741485038306,-500.94597063,9.995e-05,2]
[355705402,1741485038315,-500.0,9.995e-05,2]
[355705403,1741485038324,-500.59392025,9.995e-05,2]
[355705405,1741485038333,-500.0,9.995e-05,2]
[355705406,1741485038343,-501.45813552,9.995e-05,2]
[355705407,1741485038353,-2540.25,9.995e-05,2]
[355705408,1741485038362,-500.0,9.995e-05,2]
[355705409,1741485038371,-517.32633679,9.995e-05,2]
[355705410,1741485038380,-500.0,9.995e-05,2]
[355705411,1741485038389,-501.04904378,9.995e-05,2]
[355705412,1741485038398,-500.0,9.995e-05,2]
[355705413,1741485038407,-1116.04,9.995e-05,2]
[355705414,1741485038416,-503.82754422,9.995e-05,2]
[355705415,1741485038425,-500.0,9.995e-05,2]
[355705416,1741485038434,-510.49879587,9.995e-05,2]
[355705417,1741485038443,-553.71568818,9.995e-05,2]
[355705418,1741485038452,-500.0,9.995e-05,2]
[355705419,1741485038461,-514.05390134,9.995e-05,2]
[355705420,1741485038471,-607.42731001,9.995e-05,2]
[355705421,1741485038479,-517.63786377,9.995e-05,2]
[355705422,1741485038489,-525.06727443,9.995e-05,2]
[355705423,1741485038498,-511.34268421,9.995e-05,2]
[355705424,1741485038507,-507.35332317,9.995e-05,2]
[355705425,1741485038516,-500.0,9.995e-05,2]
[355705426,1741485038526,-500.0,9.995e-05,2]
[355705427,1741485038535,-501.74851106,9.995e-05,2]
[355705428,1741485038544,-500.0,9.995e-05,2]
[355705429,1741485038553,-500.0,9.995e-05,2]
[355705430,1741485038562,-593.07781767,9.995e-05,2]
[355705431,1741485038572,-517.15661139,9.995e-05,2]
[355705432,1741485038581,-500.0,9.995e-05,2]
[355705433,1741485038591,-524.44069207,9.995e-05,2]
[355705434,1741485038600,-211.53918387,9.995e-05,2]
[355705435,1741485038609,-500.0,9.995e-05,2]
[355705436,1741485038618,-501.42576829,9.995e-05,2]
[355705437,1741485038627,-500.0,9.995e-05,2]
[355705438,1741485038637,-501.21807397,9.995e-05,2]
[355705439,1741485038646,-596.14122842,9.995e-05,2]
[355705440,1741485038656,-212.24073737,9.995e-05,2]
[355705441,1741485038665,-500.89407242,9.995e-05,2]
[355705442,1741485038675,-500.0,9.995e-05,2]
[355705443,1741485038684,-500.0,9.995e-05,2]
[355705444,1741485038693,-500.0,9.995e-05,2]
[355705445,1741485038702,-500.0,9.995e-05,2]
[355705446,1741485038711,-500.0,9.995e-05,2]
[355705447,1741485038721,-500.89586206,9.995e-05,2]
[355705448,1741485038730,-511.5726867,9.995e-05,2]
[355705449,1741485038739,-500.0,9.995e-05,2]
[355705450,1741485038749,-501.32560827,9.995e-05,2]
[355705451,1741485038759,-500.90643671,9.995e-05,2]
[355705452,1741485038768,-501.23867578,9.995e-05,2]
[355705453,1741485038779,-506.24597492,9.995e-05,2]
[355705454,1741485038788,-507.73549405,9.995e-05,2]
[355705455,1741485038799,-501.57420996,9.995e-05,2]
[355705456,1741485038808,-500.0,9.995e-05,2]
[355705457,1741485038817,-500.0,9.995e-05,2]
[355705458,1741485038827,-500.0,9.995e-05,2]
[355705459,1741485038838,-500.0,9.995e-05,2]
[355705460,1741485038848,-500.0,9.995e-05,2]
[355705461,1741485038857,-500.0,9.995e-05,2]
[355705462,1741485038866,-500.0,9.995e-05,2]
[355705463,1741485038877,-539.81290497,9.995e-05,2]
[355705464,1741485038886,-500.0,9.995e-05,2]
[355705465,1741485038897,-500.0,9.995e-05,2]
[355705466,1741485038906,-501.32509106,9.995e-05,2]
[355705467,1741485038916,-502.59278466,9.995e-05,2]
[355705468,1741485038927,-500.0,9.995e-05,2]
[355705469,1741485038937,-500.37780357,9.995e-05,2]
[355705470,1741485038947,-501.75936118,9.995e-05,2]
[355705471,1741485038956,-500.0,9.995e-05,2]
[355705472,1741485039015,-500.0,9.995e-05,2]
[355705473,1741485039026,-501.59421059,9.995e-05,2]
[355705474,1741485039035,-500.0,9.995e-05,2]
[355705475,1741485039045,-500.0,9.995e-05,2]
[355705476,1741485039055,-1262.0,9.996e-05,2]
[355705477,1741485039064,-170.73818288,9.996e-05,3]
[355705478,1741485039073,-500.0,9.996e-05,2]
[355705479,1741485039082,-500.37770873,9.996e-05,2]
[355705480,1741485039091,-500.0,9.996e-05,2]
[355705481,1741485039100,-504.79437786,9.996e-05,2]
[355705482,1741485039109,-500.0,9.996e-05,2]
[355705483,1741485039118,-500.0,9.996e-05,2]
[355705484,1741485039127,-500.0,9.996e-05,2]
[355705485,1741485039137,-501.78362833,9.996e-05,2]
[355705486,1741485039146,-513.21463837,9.996e-05,2]
[355705487,1741485039156,-500.0,9.996e-05,2]
[355705488,1741485039165,-500.0,9.996e-05,2]
[355705489,1741485039175,-517.79674716,9.996e-05,2]
[355705490,1741485039184,-180.26833847,9.996e-05,2]
[355705491,1741485039194,-504.19992438,9.996e-05,2]
[355705492,1741485039205,-500.0,9.996e-05,2]
[355705493,1741485039215,-503.24045063,9.996e-05,2]
[355705494,1741485039225,-507.95980868,9.996e-05,2]
[355705495,1741485039234,-500.0,9.996e-05,2]
[355705496,1741485039243,-506.97132206,9.996e-05,2]
[355705497,1741485039253,-506.81930288,9.996e-05,2]
[355705498,1741485039267,-503.03126429,9.996e-05,2]
[355705499,1741485039276,-500.0,9.996e-05,2]
[355705500,1741485039285,-501.66998925,9.996e-05,2]
[355705501,1741485039294,-500.0,9.996e-05,2]
[355705502,1741485039303,-509.51975124,9.996e-05,2]
[355705503,1741485039313,-500.0,9.996e-05,2]
[355705504,1741485039322,-503.92851017,9.996e-05,2]
[355705505,1741485039331,-500.0,9.996e-05,2]
[355705506,1741485039341,-501.6919501,9.996e-05,2]
[355705507,1741485039351,-502.27066979,9.996e-05,2]
[355705508,1741485039360,-504.13106521,9.996e-05,2]
[355705509,1741485039369,-500.0,9.996e-05,2]
[355705510,1741485039379,-502.45057863,9.996e-05,2]
[355705511,1741485039388,-506.62632092,9.996e-05,2]
[355705512,1741485039397,-500.0,9.996e-05,2]
[355705513,1741485039407,-502.28812077,9.996e-05,2]
[355705514,1741485039416,-509.3158157,9.996e-05,2]
[355705515,1741485039425,-507.69423918,9.996e-05,2]
[355705516,1741485039434,-502.05547995,9.996e-05,2]
[355705517,1741485039444,-268.51857728,9.996e-05,2]
[355705518,1741485039453,-505.0743161,9.996e-05,2]
[355705519,1741485039462,-504.76342504,9.996e-05,2]
[355705520,1741485039471,-504.19905926,9.996e-05,2]
[355705521,1741485039482,-500.0,9.996e-05,2]
[355705522,1741485039491,-507.39425825,9.996e-05,2]
[355705523,1741485039500,-500.0,9.996e-05,2]
[355705524,1741485039510,-504.75855284,9.996e-05,2]
[355705525,1741485039519,-500.0,9.996e-05,2]
[355705526,1741485039528,-504.38689766,9.996e-05,2]
[355705527,1741485039539,-500.0,9.996e-05,2]
[355705528,1741485039550,-236.13857076,9.996e-05,2]
[355705529,1741485039560,-516.12762628,9.996e-05,2]
[355705530,1741485039570,-500.0,9.996e-05,2]
[355705531,1741485039581,-502.33003831,9.996e-05,2]
[355705532,1741485039592,-500.0,9.996e-05,2]
[355705533,1741485039601,-506.57817337,9.996e-05,2]
[355705534,1741485039611,-500.0,9.996e-05,2]
[355705535,1741485039622,-506.13236654,9.996e-05,2]
[355705536,1741485039631,-514.77854197,9.996e-05,2]
[355705537,1741485039643,-500.0,9.996e-05,2]
[355705538,1741485039652,-503.45112049,9.996e-05,2]
[355705539,1741485039662,-500.0,9.996e-05,2]
[355705540,1741485039672,-501.56410927,9.996e-05,2]
[355705541,1741485039682,-504.85042487,9.996e-05,2]
[355705542,1741485039691,-500.0,9.996e-05,2]
[355705543,1741485039700,-502.51250439,9.996e-05,2]
[355705544,1741485039711,-500.0,9.996e-05,2]
[355705545,1741485039720,-500.0,9.996e-05,2]
[355705546,1741485039730,-500.0,9.996e-05,2]
[355705547,1741485039741,-503.62716945,9.996e-05,2]
[355705548,1741485039751,-504.93790813,9.996e-05,2]
[355705549,1741485039761,-500.0,9.996e-05,2]
[355705550,1741485039770,-504.90931763,9.996e-05,2]
[355705551,1741485039779,-503.000528,9.996e-05,2]
[355705552,1741485039789,-502.16375316,9.996e-05,2]
[355705553,1741485039803,-500.0,9.996e-05,2]
[355705554,1741485039813,-500.0,9.996e-05,2]
[355705555,1741485039822,-500.0,9.996e-05,2]
[355705556,1741485039832,-500.76267471,9.996e-05,2]
[355705557,1741485039842,-500.0,9.996e-05,2]
[355705558,1741485039851,-500.0,9.996e-05,2]
[355705559,1741485039860,-508.04041918,9.996e-05,2]
[355705560,1741485039869,-502.22796206,9.996e-05,2]
[355705561,1741485039880,-500.0,9.996e-05,2]
[355705562,1741485039889,-517.07534508,9.996e-05,2]
[355705563,1741485039898,-504.12882739,9.996e-05,2]
[355705564,1741485039908,-501.19931974,9.996e-05,2]
[355705565,1741485039918,-500.0,9.996e-05,2]
[355705566,1741485039927,-505.95915128,9.996e-05,2]
[355705567,1741485039936,-507.1226242,9.996e-05,2]
[355705568,1741485039946,-500.0,9.996e-05,2]
[355705569,1741485039955,-502.44688552,9.996e-05,2]
[355705570,1741485039964,-501.93592796,9.996e-05,2]
[355705571,1741485039974,-500.0,9.996e-05,2]
[355705572,1741485039983,-500.0,9.996e-05,2]
[355705573,1741485039993,-500.0,9.996e-05,2]
[355705574,1741485040003,-500.0,9.996e-05,2]
[355705575,1741485040012,-502.77185509,9.996e-05,2]
[355705576,1741485040021,-500.0,9.996e-05,2]
[355705577,1741485040030,-504.82077077,9.996e-05,2]
[355705578,1741485040039,-503.05315634,9.996e-05,2]
[355705579,1741485040049,-501.94486851,9.996e-05,2]
[355705580,1741485040058,-500.0,9.996e-05,2]
[355705581,1741485040067,-495.13617818,9.996e-05,2]
[355705582,1741485040076,-500.0,9.996e-05,2]
[355705583,1741485040086,-500.0,9.996e-05,2]
[355705584,1741485040095,-526.7582985,9.996e-05,2]
[355705585,1741485040105,-504.08908055,9.996e-05,2]
[355705586,1741485040114,-500.0,9.996e-05,2]
[355705587,1741485040123,-500.0,9.996e-05,2]
[355705588,1741485040133,-500.0,9.996e-05,2]
[355705589,1741485040142,-500.9784302,9.996e-05,2]
[355705590,1741485040152,-500.71142421,9.996e-05,2]
[355705591,1741485040161,-507.4740213,9.996e-05,2]
[355705592,1741485040171,-500.0,9.996e-05,2]
[355705593,1741485040180,-504.18395281,9.996e-05,2]
[355705594,1741485040189,-500.0,9.996e-05,2]
[355705595,1741485040199,-503.29526973,9.996e-05,2]
[355705596,1741485040209,-513.66513667,9.996e-05,2]
[355705597,1741485040219,-503.01485206,9.996e-05,2]
[355705598,1741485040229,-500.0,9.996e-05,2]
[355705599,1741485040239,-504.56093877,9.996e-05,2]
[355705600,1741485040248,-503.89196735,9.996e-05,2]
[355705601,1741485040259,-500.27456023,9.996e-05,2]
[355705602,1741485040269,-500.0,9.996e-05,2]
[355705603,1741485040278,-503.58060248,9.996e-05,2]
[355705604,1741485040288,-500.0,9.996e-05,2]
[355705605,1741485040298,-504.00219559,9.996e-05,2]
[355705606,1741485040308,-500.0,9.996e-05,2]
[355705607,1741485040318,-500.0,9.996e-05,2]
[355705608,1741485040334,-502.04256001,9.996e-05,2]
[355705609,1741485040344,-500.0,9.996e-05,2]
[355705610,1741485040353,-514.72997123,9.996e-05,2]
[355705611,1741485040363,-533.13992873,9.996e-05,2]
[355705612,1741485040372,-500.80523241,9.996e-05,2]
[355705613,1741485040381,-509.9476146,9.996e-05,2]
[355705614,1741485040392,-504.40073119,9.996e-05,2]
[355705615,1741485040403,-500.0,9.996e-05,2]
[355705616,1741485040413,-508.12729333,9.996e-05,2]
[355705617,1741485040423,-500.0,9.996e-05,2]
[355705618,1741485040432,-500.00892545,9.996e-05,2]
[355705619,1741485040441,-500.0,9.996e-05,2]
[355705620,1741485040451,-506.10606364,9.996e-05,2]
[355705621,1741485040460,-500.0,9.996e-05,2]
[355705622,1741485040470,-500.0,9.996e-05,2]
[355705623,1741485040480,-500.0,9.996e-05,2]
[355705624,1741485040490,-505.32544044,9.996e-05,2]
[355705625,1741485040499,-500.0,9.996e-05,2]
[355705626,1741485040510,-500.0,9.996e-05,2]
[355705627,1741485040523,-507.35986097,9.996e-05,2]
[355705628,1741485040533,-507.89272541,9.996e-05,2]
[355705629,1741485040542,-505.65335398,9.996e-05,2]
[355705630,1741485040551,-500.0,9.996e-05,2]
[355705631,1741485040560,-500.98261145,9.996e-05,2]
[355705632,1741485040569,-500.0,9.996e-05,2]
[355705633,1741485040579,-502.25164427,9.996e-05,2]
[355705634,1741485040588,-506.76013325,9.996e-05,2]
[355705635,1741485040597,-500.35320392,9.996e-05,2]
[355705636,1741485040606,-504.73205815,9.996e-05,2]
[355705637,1741485040615,-500.0,9.996e-05,2]
[355705638,1741485040624,-504.07156418,9.996e-05,2]
[355705639,1741485040633,-504.31520614,9.996e-05,2]
[355705640,1741485040642,-503.38934733,9.996e-05,2]
[355705641,1741485040651,-502.44355949,9.996e-05,2]
[355705642,1741485040661,-502.38938205,9.996e-05,2]
[355705643,1741485040670,-515.43798555,9.996e-05,2]
[355705644,1741485040679,-506.74046529,9.996e-05,2]
[355705645,1741485040688,-507.40764248,9.996e-05,2]
[355705646,1741485040698,-510.168848,9.996e-05,2]
[355705647,1741485040707,-506.99057185,9.996e-05,2]
[355705648,1741485040716,-519.99290129,9.996e-05,2]
[355705649,1741485040725,-505.51086938,9.996e-05,2]
[355705650,1741485040735,-513.12665785,9.996e-05,2]
[355705651,1741485040744,-511.50471966,9.996e-05,2]
[355705652,1741485040753,-508.33414968,9.996e-05,2]
[355705653,1741485040763,-509.14937655,9.996e-05,2]
[355705654,1741485040772,-510.13617614,9.996e-05,2]
[355705655,1741485040781,-520.18788802,9.996e-05,2]
[355705656,1741485040796,-506.44918103,9.996e-05,2]
[355705657,1741485040806,-505.2931165,9.996e-05,2]
[355705658,1741485040815,-502.92927504,9.996e-05,2]
[355705659,1741485040824,-508.58320425,9.996e-05,2]
[355705660,1741485040835,-507.97281347,9.996e-05,2]
[355705661,1741485040845,-275.67730576,9.996e-05,2]
[355705662,1741485040854,-510.18181475,9.996e-05,2]
[355705663,1741485040863,-503.68806287,9.996e-05,2]
[355705664,1741485040873,-504.43845771,9.996e-05,2]
[355705665,1741485040884,-504.08125952,9.996e-05,2]
[355705666,1741485040893,-476.61439547,9.996e-05,2]
[355705667,1741485040902,-268.29066328,9.996e-05,2]
[355705668,1741485040911,-503.85390639,9.996e-05,2]
[355705669,1741485040920,-556.932296,9.996e-05,2]
[355705670,1741485040930,-568.47455223,9.996e-05,2]
[355705671,1741485040939,-517.52936129,9.996e-05,2]
[355705672,1741485040948,-507.1531673,9.996e-05,2]
[355705673,1741485040957,-513.03663061,9.996e-05,2]
[355705674,1741485040966,-508.96767713,9.996e-05,2]
[355705675,1741485040976,-516.41955622,9.996e-05,2]
[355705676,1741485040986,-504.71061766,9.996e-05,2]
[355705677,1741485040995,-513.57228866,9.996e-05,2]
[355705678,1741485041005,-500.0,9.996e-05,2]
[355705679,1741485041014,-618.88264486,9.996e-05,2]
[355705680,1741485041023,-519.37045734,9.996e-05,2]
[355705681,1741485041033,-507.70450282,9.996e-05,2]
[355705682,1741485041042,-502.7553455,9.996e-05,2]
[355705683,1741485041051,-503.08721351,9.996e-05,2]
[355705684,1741485041061,-517.29528328,9.996e-05,2]
[355705685,1741485041071,-504.1745251,9.996e-05,2]
[355705686,1741485041081,-507.03382244,9.996e-05,2]
[355705687,1741485041090,-502.31327438,9.996e-05,2]
[355705688,1741485041100,-500.0,9.996e-05,2]
[355705689,1741485041109,-515.92950537,9.996e-05,2]
[355705690,1741485041119,-500.44260497,9.996e-05,2]
[355705691,1741485041129,-500.0,9.996e-05,2]
[355705692,1741485041139,-503.79095322,9.996e-05,2]
[355705693,1741485041149,-517.8042774,9.996e-05,2]
[355705694,1741485041159,-500.0,9.996e-05,2]
[355705695,1741485041168,-507.9216507,9.996e-05,2]
[355705696,1741485041178,-521.59976541,9.996e-05,2]
[355705697,1741485041188,-504.07626215,9.996e-05,2]
[355705698,1741485041198,-505.88356493,9.996e-05,2]
[355705699,1741485041207,-501.09327974,9.996e-05,2]
[355705701,1741485041217,-274.61977892,9.996e-05,2]
[355705702,1741485041227,-452.24025169,9.996e-05,2]
[355705703,1741485041236,-509.47933584,9.996e-05,2]
[355705704,1741485041245,-500.0,9.996e-05,2]
[355705705,1741485041255,-512.04731598,9.996e-05,2]
[355705706,1741485041264,-500.0,9.996e-05,2]
[355705707,1741485041273,-195.59335329,9.996e-05,2]
[355705708,1741485041282,-500.0,9.996e-05,2]
[355705709,1741485041291,-500.0,9.996e-05,2]
[355705710,1741485041301,-278.18070828,9.996e-05,2]
[355705711,1741485041310,-610.45864399,9.996e-05,2]
[355705712,1741485041320,-1373.61,9.996e-05,2]
[355705713,1741485041329,-500.0,9.996e-05,2]
[355705714,1741485041338,-151.0,9.996e-05,2]
[355705715,1741485041348,-509.82549279,9.996e-05,2]
[355705716,1741485041358,-513.30115356,9.996e-05,2]
[355705717,1741485041367,-505.67808868,9.996e-05,2]
[355705718,1741485041377,-500.0,9.996e-05,2]
[355705719,1741485041386,-504.91677408,9.996e-05,2]
[355705720,1741485041395,-507.90196185,9.996e-05,2]
[355705721,1741485041405,-508.24070713,9.996e-05,2]
[355705722,1741485041414,-507.03506299,9.996e-05,2]
[355705723,1741485041423,-218.45817738,9.996e-05,2]
[355705724,1741485041432,-500.0,9.996e-05,2]
[355705725,1741485041442,-516.85224676,9.996e-05,2]
[355705726,1741485041451,-515.90932088,9.996e-05,2]
[355705727,1741485041460,-506.38168623,9.996e-05,2]
[355705728,1741485041470,-508.50351943,9.996e-05,2]
[355705729,1741485041479,-511.62405489,9.996e-05,2]
[355705730,1741485041488,-514.70926377,9.996e-05,2]
[355705731,1741485041497,-975.812045,9.996e-05,2]
[355705732,1741485041506,-504.50753187,9.996e-05,2]
[355705733,1741485041517,-505.88247216,9.996e-05,2]
[355705734,1741485041526,-499.99429991,9.996e-05,2]
[355705735,1741485041535,-511.38332917,9.996e-05,2]
[355705736,1741485041545,-517.98516816,9.996e-05,2]
[355705737,1741485041554,-504.61409326,9.996e-05,2]
[355705738,1741485041564,-506.46162248,9.996e-05,2]
[355705739,1741485041573,-174.9549407,9.996e-05,2]
[355705740,1741485041583,-507.60057381,9.996e-05,2]
[355705741,1741485041593,-510.58510779,9.996e-05,2]
[355705742,1741485041602,-521.84768813,9.996e-05,2]
[355705743,1741485041612,-512.0613272,9.996e-05,2]
[355705744,1741485041622,-507.71674588,9.996e-05,2]
[355705745,1741485041631,-516.62777103,9.996e-05,2]
[355705746,1741485041641,-505.24851029,9.996e-05,2]
[355705747,1741485041650,-4174.9864942,9.996e-05,2]
[355705748,1741485041660,-500.0,9.996e-05,2]
[355705749,1741485041669,-500.0,9.996e-05,2]
[355705750,1741485041678,-500.0,9.996e-05,2]
[355705751,1741485041688,-500.0,9.996e-05,2]
[355705752,1741485041697,-1292.2794199,9.996e-05,2]
[355705753,1741485041706,-611.75125278,9.996e-05,2]
[355705754,1741485041715,-235541.17448133,9.997e-05,2]
[355705755,1741485042049,-260.24221131,9.989e-05,2]
[355705756,1741485042086,-947.14478869,9.989e-05,2]
[355705757,1741485042096,-291.35962612,9.993e-05,2]
[355705758,1741485042109,-513.01037388,9.993e-05,2]
[355705759,1741485042120,-500.0,9.994e-05,2]
[355705760,1741485042130,-272.69245667,9.997e-05,2]
[355705761,1741485042142,-552.91371413,9.997e-05,2]
[355705762,1741485042187,-320.09861389,9.997e-05,2]
[355705777,1741485043716,-9759.00787238,9.997e-05,2]
[355705778,1741485043727,-2683.6833661,9.997e-05,2]
[355705779,1741485043746,-2551.01657554,9.997e-05,2]
[355705780,1741485043970,-1286.66455003,9.997e-05,2]
[355705781,1741485043982,-12960.48396648,9.997e-05,2]
[355705782,1741485043993,-602.76063078,9.997e-05,2]
[355705783,1741485044004,-558.89350208,9.997e-05,2]
[355705784,1741485044220,-500.0,9.993e-05,2]
[355705785,1741485044229,-270055.00178504,9.997e-05,2]
[355705786,1741485044306,-566.12214868,9.997e-05,2]
[355705787,1741485044451,-500.0,9.993e-05,2]
[355705788,1741485044461,-4444.36932319,9.997e-05,2]
[355705814,1741485660441,500.0,0.00028,120]
[355705815,1741485769121,500.0,0.00028,120]
[355705843,1741486231677,-1917.29626969,8.219e-05,2]
[355705844,1741486232002,-91.03373031,8.219e-05,2]
[355705845,1741486232013,-1453.22941466,8.628e-05,2]
[355705846,1741486232037,-1026.50689785,8.628e-05,2]
[355705847,1741486232048,-21420.26368749,8.628e-05,2]
[355705848,1741486232058,-205.02,8.64e-05,2]
[355705849,1741486232067,-2000.0,8.644e-05,2]
[355705850,1741486232076,-163.33,8.677e-05,2]
[355705851,1741486232086,-1000.0,8.726e-05,2]
[355705852,1741486232095,-6925.3485,8.761e-05,2]
[355705853,1741486232104,-619.47,8.807e-05,2]
[355705854,1741486232113,-250.0,8.832e-05,2]
[355705855,1741486232123,-807.02,8.839e-05,2]
[355705856,1741486232133,-200.0,8.895e-05,2]
[355705857,1741486232143,-152.31,9.126e-05,2]
[355705858,1741486232152,-299.99,9.126e-05,2]
[355705859,1741486232162,-3932.95,9.156e-05,2]
[355705860,1741486232172,-4756.42,9.156e-05,2]
[355705861,1741486232182,-1630.96207427,9.156e-05,2]
[355705862,1741486232194,-2665.84792573,9.156e-05,2]
[355705863,1741486232203,-152.31,9.176e-05,2]
[355705864,1741486232213,-152.31,9.226e-05,2]
[355705865,1741486232228,-152.31,9.276e-05,2]
[355705866,1741486232238,-152.31,9.325e-05,2]
[355705867,1741486232247,-152.31,9.375e-05,2]
[355705868,1741486232257,-152.31,9.425e-05,2]
[355705869,1741486232268,-152.31,9.475e-05,2]
[355705870,1741486232277,-152.31,9.525e-05,2]
[355705871,1741486232287,-152.31,9.574e-05,2]
[355705872,1741486232303,-152.31,9.624e-05,2]
[355705873,1741486232311,-152.31,9.674e-05,2]
[355705874,1741486232321,-163.33,9.762e-05,2]
[355705875,1741486232330,-1000.0,9.817e-05,2]
[355705876,1741486232340,-2500.0,9.891e-05,2]
[355705877,1741486232349,-244.5889,9.893e-05,2]
[355705878,1741486232359,-150.0,9.893e-05,2]
[355705879,1741486232369,-17393.1393,9.894e-05,2]
[355705880,1741486232379,-7743.0679043,9.894e-05,2]
[355705881,1741486232411,-601.54859924,9.894e-05,2]
[355705884,1741486237589,-8768.97521127,9.894e-05,2]
[355705885,1741486237604,-2052.01424084,9.894e-05,2]
[355705886,1741486237619,-5661.22796344,9.894e-05,2]
[355705887,1741486237638,-941.57868834,9.894e-05,2]
[355705888,1741486237657,-592.14361496,9.894e-05,2]
[355705889,1741486237734,-295.59092912,9.894e-05,2]
[355705890,1741486237746,-32308.20538036,9.894e-05,2]
[355705891,1741486237815,-5805.96,9.894e-05,2]
[355705918,1741486239715,-17024.91786813,9.894e-05,2]
[355705920,1741486239724,-500.0,9.897e-05,2]
[355705921,1741486239734,-619.47,9.908e-05,2]
[355705922,1741486239743,-2042.997,9.952e-05,2]
[355705923,1741486239752,-171.11088019,9.952e-05,2]
[355705924,1741486239761,-2032.0,9.989e-05,2]
[355705925,1741486239770,-1278.0,9.989e-05,2]
[355705926,1741486239779,-786.0,9.989e-05,2]
[355705927,1741486239788,-1270.0,9.989e-05,2]
[355705928,1741486239797,-1428.0,9.989e-05,2]
[355705929,1741486239806,-907.0,9.989e-05,2]
[355705930,1741486239815,-541.0,9.989e-05,2]
[355705931,1741486239824,-3983.095,9.989e-05,2]
[355705932,1741486239833,-150.0,9.989e-05,2]
[355705933,1741486239842,-3932.0,9.989e-05,2]
[355705934,1741486239851,-533.23,9.991e-05,2]
[355705935,1741486239861,-1475.545968,9.991e-05,2]